[Event "Early-Titled-Tuesday-Blitz-April-02-2024"]
[Site "Chess.com"]
[Date "2024.04.02"]
[Round "8"]
[White "WilsonPalencia21"]
[Black "Heliosis11"]
[Result "0-1"]
[WhiteElo "2562"]
[BlackElo "2391"]
[TimeControl "180+1"]
[EndTime "9:30:31 PDT"]
[Termination "Heliosis11 won on time"]

1. d4 {[%clk 0:03:00.9]} 1... Nf6 {[%clk 0:02:57.1]} 2. c4 {[%clk 0:03:00.8]}
2... e6 {[%clk 0:02:57.7]} 3. Nf3 {[%clk 0:03:00.8]} 3... b6 {[%clk 0:02:57.7]}
4. g3 {[%clk 0:03:01.3]} 4... Ba6 {[%clk 0:02:51.9]} 5. Qc2 {[%clk 0:03:01.6]}
5... c5 {[%clk 0:02:52.1]} 6. d5 {[%clk 0:03:01.4]} 6... exd5 {[%clk 0:02:53]}
7. cxd5 {[%clk 0:03:01.8]} 7... Bb7 {[%clk 0:02:52.8]} 8. Bg2 {[%clk 0:03:01.7]}
8... Nxd5 {[%clk 0:02:51.7]} 9. O-O {[%clk 0:02:58.5]} 9... Nc6 {[%clk
0:02:52.1]} 10. Rd1 {[%clk 0:02:58.4]} 10... Be7 {[%clk 0:02:52.7]} 11. a3
{[%clk 0:02:58.5]} 11... Nf6 {[%clk 0:02:48.7]} 12. e4 {[%clk 0:02:56.8]} 12...
Qc7 {[%clk 0:02:37.4]} 13. Bf4 {[%clk 0:02:46.9]} 13... d6 {[%clk 0:02:37.2]}
14. Nc3 {[%clk 0:02:46.6]} 14... a6 {[%clk 0:02:24]} 15. e5 {[%clk 0:02:36.7]}
15... dxe5 {[%clk 0:02:22.9]} 16. Nxe5 {[%clk 0:02:33.7]} 16... Qc8 {[%clk
0:02:16.5]} 17. Nxc6 {[%clk 0:02:19.1]} 17... Bxc6 {[%clk 0:02:16.2]} 18. Re1
{[%clk 0:02:19.2]} 18... Bxg2 {[%clk 0:02:13.4]} 19. Kxg2 {[%clk 0:02:19.1]}
19... Qb7+ {[%clk 0:02:13.9]} 20. Kg1 {[%clk 0:02:15.4]} 20... O-O {[%clk
0:02:14.1]} 21. Na4 {[%clk 0:02:06.6]} 21... Rfe8 {[%clk 0:02:09.2]} 22. Qf5
{[%clk 0:02:01.9]} 22... Bf8 {[%clk 0:02:08.8]} 23. Be5 {[%clk 0:01:59.9]} 23...
Nd7 {[%clk 0:02:06]} 24. Nc3 {[%clk 0:01:36]} 24... Nxe5 {[%clk 0:02:04.7]} 25.
Rxe5 {[%clk 0:01:36.5]} 25... g6 {[%clk 0:02:01.5]} 26. Qf4 {[%clk 0:01:17.5]}
26... Bg7 {[%clk 0:01:58.9]} 27. Rxe8+ {[%clk 0:01:16.1]} 27... Rxe8 {[%clk
0:01:59.8]} 28. Rd1 {[%clk 0:01:14.1]} 28... b5 {[%clk 0:01:53.3]} 29. Nd5
{[%clk 0:01:04.5]} 29... Bxb2 {[%clk 0:01:39.4]} 30. Nc7 {[%clk 0:00:53.3]}
30... Rf8 {[%clk 0:01:34.9]} 31. Rd7 {[%clk 0:00:47.9]} 31... Qc6 {[%clk
0:01:31.6]} 32. Re7 {[%clk 0:00:37.9]} 32... Bf6 {[%clk 0:01:23.1]} 33. Nd5
{[%clk 0:00:19.5]} 33... Qxd5 {[%clk 0:01:22.2]} 34. Qxf6 {[%clk 0:00:19.5]}
34... Qd1+ {[%clk 0:01:16.2]} 35. Kg2 {[%clk 0:00:19.4]} 35... Qd5+ {[%clk
0:01:16.9]} 36. Kg1 {[%clk 0:00:20]} 36... a5 {[%clk 0:01:10.9]} 37. h4 {[%clk
0:00:18.5]} 37... b4 {[%clk 0:01:10.8]} 38. Re5 {[%clk 0:00:18.7]} 38... Qd1+
{[%clk 0:01:07.9]} 39. Kg2 {[%clk 0:00:19.3]} 39... c4 {[%clk 0:01:03.1]} 40. h5
{[%clk 0:00:19.8]} 40... Qd8 {[%clk 0:00:54.1]} 41. Qf4 {[%clk 0:00:14.4]} 41...
Qc7 {[%clk 0:00:42.2]} 42. Qf6 {[%clk 0:00:13.4]} 42... Qd8 {[%clk 0:00:37.6]}
43. Qf4 {[%clk 0:00:13.5]} 43... c3 {[%clk 0:00:32]} 44. axb4 {[%clk 0:00:12.5]}
44... axb4 {[%clk 0:00:29.4]} 45. Qxb4 {[%clk 0:00:11.9]} 45... Qd3 {[%clk
0:00:23]} 46. Rc5 {[%clk 0:00:09.6]} 46... c2 {[%clk 0:00:23.2]} 47. Qc3 {[%clk
0:00:07.4]} 47... Qd1 {[%clk 0:00:17.5]} 48. hxg6 {[%clk 0:00:05.6]} 48... hxg6
{[%clk 0:00:16.8]} 49. Qxc2 {[%clk 0:00:06]} 49... Qd6 {[%clk 0:00:17.4]} 50.
Qc4 {[%clk 0:00:05.5]} 50... Rd8 {[%clk 0:00:16.2]} 51. Rc6 {[%clk 0:00:05.5]}
51... Qd5+ {[%clk 0:00:16.3]} 52. Qxd5 {[%clk 0:00:05.9]} 52... Rxd5 {[%clk
0:00:17.2]} 53. Rc7 {[%clk 0:00:06.6]} 53... Kg7 {[%clk 0:00:17]} 54. Kf3 {[%clk
0:00:07.1]} 54... g5 {[%clk 0:00:17.3]} 55. Ke4 {[%clk 0:00:07.6]} 55... Rd2
{[%clk 0:00:16.7]} 56. Ke3 {[%clk 0:00:07.6]} 56... Ra2 {[%clk 0:00:16.4]} 57.
Rc6 {[%clk 0:00:07.5]} 57... f6 {[%clk 0:00:16.3]} 58. Kf3 {[%clk 0:00:08]}
58... Kg6 {[%clk 0:00:16.3]} 59. Kg2 {[%clk 0:00:08.2]} 59... g4 {[%clk
0:00:14.6]} 60. Rc5 {[%clk 0:00:08.3]} 60... f5 {[%clk 0:00:14.6]} 61. Rc8
{[%clk 0:00:08.8]} 61... Re2 {[%clk 0:00:10.7]} 62. Rc6+ {[%clk 0:00:09.2]}
62... Kg5 {[%clk 0:00:11]} 63. Rc4 {[%clk 0:00:10.1]} 63... Rd2 {[%clk
0:00:10.3]} 64. Rc8 {[%clk 0:00:09.9]} 64... Rd4 {[%clk 0:00:09.6]} 65. Rg8+
{[%clk 0:00:09.9]} 65... Kf6 {[%clk 0:00:10]} 66. Kf1 {[%clk 0:00:10.1]} 66...
Re4 {[%clk 0:00:09.3]} 67. Rc8 {[%clk 0:00:09.3]} 67... Re6 {[%clk 0:00:09.2]}
68. Rc7 {[%clk 0:00:09.1]} 68... Ra6 {[%clk 0:00:07.8]} 69. Kg2 {[%clk
0:00:09.1]} 69... Ra4 {[%clk 0:00:07.1]} 70. Rc6+ {[%clk 0:00:09.8]} 70... Ke5
{[%clk 0:00:07.4]} 71. Rc5+ {[%clk 0:00:10.4]} 71... Ke4 {[%clk 0:00:08]} 72.
Rb5 {[%clk 0:00:10.9]} 72... Rd4 {[%clk 0:00:08.1]} 73. Rb8 {[%clk 0:00:10.6]}
73... Rd5 {[%clk 0:00:08.1]} 74. Rf8 {[%clk 0:00:10.4]} 74... Kd3 {[%clk
0:00:07.8]} 75. f3 {[%clk 0:00:09.9]} 75... Ke3 {[%clk 0:00:06.5]} 76. fxg4
{[%clk 0:00:10]} 76... fxg4 {[%clk 0:00:07.1]} 77. Rf2 {[%clk 0:00:09.3]} 77...
Rd2 {[%clk 0:00:06.3]} 78. Rxd2 {[%clk 0:00:09.5]} 78... Kxd2 {[%clk 0:00:07.2]}
79. Kf2 {[%clk 0:00:09.9]} 79... Kd3 {[%clk 0:00:07.6]} 80. Kf1 {[%clk
0:00:09.6]} 80... Ke3 {[%clk 0:00:08]} 81. Ke1 {[%clk 0:00:10]} 81... Kf3 {[%clk
0:00:08.4]} 82. Kf1 {[%clk 0:00:10.2]} 82... Kxg3 {[%clk 0:00:09]} 83. Kg1
{[%clk 0:00:10.8]} 83... Kf3 {[%clk 0:00:09.4]} 84. Kf1 {[%clk 0:00:11.3]} 84...
g3 {[%clk 0:00:09.8]} 85. Kg1 {[%clk 0:00:11.9]} 85... g2 {[%clk 0:00:10.4]} 0-1

[Event "Early-Titled-Tuesday-Blitz-April-02-2024"]
[Site "Chess.com"]
[Date "2024.04.02"]
[Round "8"]
[White "Donskov_AN"]
[Black "Orest_Vovk"]
[Result "1-0"]
[WhiteElo "2387"]
[BlackElo "2557"]
[TimeControl "180+1"]
[EndTime "9:30:45 PDT"]
[Termination "Donskov_AN won by resignation"]

1. e4 {[%clk 0:03:00.9]} 1... g5 {[%clk 0:02:53.2]} 2. d4 {[%clk 0:02:59.5]}
2... g4 {[%clk 0:02:53.2]} 3. Qxg4 {[%clk 0:02:58.4]} 3... d5 {[%clk 0:02:52.4]}
4. Qh4 {[%clk 0:02:52.6]} 4... dxe4 {[%clk 0:02:53.3]} 5. Qxe4 {[%clk
0:02:53.5]} 5... Nf6 {[%clk 0:02:53.3]} 6. Qd3 {[%clk 0:02:53.7]} 6... Nc6
{[%clk 0:02:53.1]} 7. c3 {[%clk 0:02:53]} 7... Qd5 {[%clk 0:02:52.3]} 8. Nf3
{[%clk 0:02:50.3]} 8... Bg4 {[%clk 0:02:52.7]} 9. Be2 {[%clk 0:02:49.7]} 9...
O-O-O {[%clk 0:02:53.1]} 10. h3 {[%clk 0:02:45]} 10... Bh5 {[%clk 0:02:49.5]}
11. Qb5 {[%clk 0:01:50.2]} 11... Bxf3 {[%clk 0:02:27.8]} 12. gxf3 {[%clk
0:01:49.7]} 12... e5 {[%clk 0:02:27.3]} 13. Qxd5 {[%clk 0:01:48.1]} 13... Nxd5
{[%clk 0:02:27.1]} 14. dxe5 {[%clk 0:01:44.5]} 14... Nxe5 {[%clk 0:02:28]} 15.
Be3 {[%clk 0:01:38.1]} 15... Nxe3 {[%clk 0:02:11.8]} 16. fxe3 {[%clk 0:01:38.3]}
16... Bc5 {[%clk 0:02:12.2]} 17. Kf2 {[%clk 0:01:11.9]} 17... Nd3+ {[%clk
0:01:45.7]} 18. Bxd3 {[%clk 0:01:11.5]} 18... Rxd3 {[%clk 0:01:46.6]} 19. Re1
{[%clk 0:01:09.3]} 19... Re8 {[%clk 0:01:45.1]} 20. b4 {[%clk 0:00:42.1]} 20...
Rdxe3 {[%clk 0:01:37]} 21. Rxe3 {[%clk 0:00:40.9]} 21... Bxe3+ {[%clk
0:01:37.1]} 22. Kg2 {[%clk 0:00:33.3]} 22... Bc1 {[%clk 0:01:34.5]} 23. a4
{[%clk 0:00:30.5]} 23... Re2+ {[%clk 0:01:29.1]} 24. Kg3 {[%clk 0:00:28.8]}
24... Rc2 {[%clk 0:01:15.3]} 25. Na3 {[%clk 0:00:28.8]} 25... Bxa3 {[%clk
0:01:13.9]} 26. Rxa3 {[%clk 0:00:29.7]} 26... Kd7 {[%clk 0:01:10.8]} 27. Kg4
{[%clk 0:00:29.4]} 27... Ke6 {[%clk 0:01:09.8]} 28. h4 {[%clk 0:00:29.7]} 28...
Kf6 {[%clk 0:01:05.2]} 29. b5 {[%clk 0:00:27.6]} 29... Kg6 {[%clk 0:00:57.5]}
30. h5+ {[%clk 0:00:26.9]} 30... Kf6 {[%clk 0:00:55.6]} 31. Rb3 {[%clk
0:00:26.2]} 31... h6 {[%clk 0:00:51.4]} 32. Kf4 {[%clk 0:00:23.5]} 32... Ke6
{[%clk 0:00:48.3]} 33. a5 {[%clk 0:00:23.1]} 33... b6 {[%clk 0:00:42.6]} 34. a6
{[%clk 0:00:20.5]} 34... f5 {[%clk 0:00:37.2]} 35. Ke3 {[%clk 0:00:14.4]} 35...
Rh2 {[%clk 0:00:34.7]} 36. Rb4 {[%clk 0:00:08.2]} 36... Rxh5 {[%clk 0:00:34.6]}
37. Rc4 {[%clk 0:00:08.6]} 37... Kd7 {[%clk 0:00:28.7]} 38. Rd4+ {[%clk
0:00:07.9]} 38... Kc8 {[%clk 0:00:27.8]} 39. Kf4 {[%clk 0:00:06.3]} 39... Rh4+
{[%clk 0:00:18.2]} 40. Kxf5 {[%clk 0:00:06.5]} 40... Rh5+ {[%clk 0:00:18.8]} 41.
Kg6 {[%clk 0:00:05.7]} 41... Rxb5 {[%clk 0:00:18.6]} 42. f4 {[%clk 0:00:06.6]}
42... Ra5 {[%clk 0:00:15.1]} 43. f5 {[%clk 0:00:07.2]} 43... Rxa6 {[%clk
0:00:15.2]} 44. f6 {[%clk 0:00:07.8]} 44... b5 {[%clk 0:00:15.6]} 45. Kg7 {[%clk
0:00:07.8]} 45... Rxf6 {[%clk 0:00:14.1]} 46. Kxf6 {[%clk 0:00:08.6]} 46... Kb7
{[%clk 0:00:13.4]} 47. Ke5 {[%clk 0:00:07.7]} 47... a5 {[%clk 0:00:12.2]} 48.
Rh4 {[%clk 0:00:07.9]} 48... Kc6 {[%clk 0:00:12.1]} 49. Kd4 {[%clk 0:00:06.8]}
49... Kb6 {[%clk 0:00:09.5]} 50. Rxh6+ {[%clk 0:00:07.7]} 50... c6 {[%clk
0:00:09.5]} 51. c4 {[%clk 0:00:07.9]} 51... b4 {[%clk 0:00:08]} 52. Rh5 {[%clk
0:00:07.9]} 52... a4 {[%clk 0:00:07.2]} 53. Kd3 {[%clk 0:00:08.5]} 53... Ka6
{[%clk 0:00:06]} 54. Kc2 {[%clk 0:00:07.5]} 54... Kb6 {[%clk 0:00:06.4]} 55. Kd3
{[%clk 0:00:03.5]} 55... Ka6 {[%clk 0:00:06.7]} 56. Rg5 {[%clk 0:00:04]} 56...
Kb6 {[%clk 0:00:06.4]} 57. Rf5 {[%clk 0:00:04.9]} 57... Ka6 {[%clk 0:00:06.7]}
58. Re5 {[%clk 0:00:05.3]} 58... Kb6 {[%clk 0:00:07]} 59. Re8 {[%clk 0:00:04.9]}
59... Kc5 {[%clk 0:00:06.8]} 60. Ra8 {[%clk 0:00:04.9]} 60... a3 {[%clk
0:00:07]} 61. Ra5+ {[%clk 0:00:04.9]} 61... Kb6 {[%clk 0:00:06.9]} 62. Ra4
{[%clk 0:00:05.2]} 62... Kc5 {[%clk 0:00:06.5]} 63. Ra8 {[%clk 0:00:04.3]} 63...
Kb6 {[%clk 0:00:05.7]} 64. Kc2 {[%clk 0:00:04.8]} 64... c5 {[%clk 0:00:04.9]}
65. Kb3 {[%clk 0:00:05.2]} 65... Kc6 {[%clk 0:00:05.3]} 66. Ra6+ {[%clk
0:00:05.4]} 66... Kc7 {[%clk 0:00:05]} 67. Ra5 {[%clk 0:00:04.6]} 67... Kb6
{[%clk 0:00:04.9]} 68. Ra8 {[%clk 0:00:05]} 68... Kb7 {[%clk 0:00:05]} 69. Rd8
{[%clk 0:00:05.6]} 69... Kc7 {[%clk 0:00:05.1]} 70. Rd5 {[%clk 0:00:05.9]} 70...
Kc6 {[%clk 0:00:05.2]} 71. Re5 {[%clk 0:00:05.7]} 71... Kd6 {[%clk 0:00:04.9]}
72. Rh5 {[%clk 0:00:05.6]} 72... Kc6 {[%clk 0:00:05]} 73. Rh6+ {[%clk
0:00:05.8]} 73... Kc7 {[%clk 0:00:05.1]} 74. Rg6 {[%clk 0:00:06.3]} 74... Kb7
{[%clk 0:00:05.2]} 75. Rf6 {[%clk 0:00:06.1]} 75... Kc7 {[%clk 0:00:05.4]} 76.
Re6 {[%clk 0:00:07]} 76... Kd7 {[%clk 0:00:05.5]} 77. Rh6 {[%clk 0:00:07.2]}
77... Kc7 {[%clk 0:00:05.8]} 78. Ka4 {[%clk 0:00:07.8]} 78... Kd7 {[%clk
0:00:04.7]} 79. Ra6 {[%clk 0:00:04]} 79... Kc7 {[%clk 0:00:04.7]} 80. Kb5 {[%clk
0:00:02.7]} 80... Kb7 {[%clk 0:00:04.8]} 81. Ra5 {[%clk 0:00:01.8]} 81... Kc7
{[%clk 0:00:03.6]} 82. Kxc5 {[%clk 0:00:02.3]} 82... b3 {[%clk 0:00:04.1]} 83.
Rxa3 {[%clk 0:00:02.5]} 83... b2 {[%clk 0:00:05]} 84. Rb3 {[%clk 0:00:03.1]}
84... b1=Q {[%clk 0:00:05.9]} 85. Rxb1 {[%clk 0:00:04]} 85... Kd7 {[%clk
0:00:06.5]} 86. Kb4 {[%clk 0:00:04.8]} 86... Ke6 {[%clk 0:00:07.4]} 87. c5
{[%clk 0:00:05.7]} 1-0

[Event "Early-Titled-Tuesday-Blitz-April-02-2024"]
[Site "Chess.com"]
[Date "2024.04.02"]
[Round "8"]
[White "Zhani-Z"]
[Black "santosalberto1987"]
[Result "0-1"]
[WhiteElo "2325"]
[BlackElo "2490"]
[TimeControl "180+1"]
[EndTime "9:31:15 PDT"]
[Termination "santosalberto1987 won on time"]

1. e4 {[%clk 0:03:00.9]} 1... e6 {[%clk 0:02:59.2]} 2. d4 {[%clk 0:03:00.8]}
2... d5 {[%clk 0:02:59.7]} 3. Nd2 {[%clk 0:03:01.3]} 3... c5 {[%clk 0:02:59.5]}
4. Ngf3 {[%clk 0:02:58.6]} 4... cxd4 {[%clk 0:02:59.1]} 5. Nxd4 {[%clk
0:02:59.2]} 5... Nf6 {[%clk 0:02:58.4]} 6. exd5 {[%clk 0:02:56.4]} 6... Nxd5
{[%clk 0:02:59.3]} 7. N2f3 {[%clk 0:02:55.3]} 7... Be7 {[%clk 0:02:57.7]} 8. Bd3
{[%clk 0:02:55.5]} 8... O-O {[%clk 0:02:56.4]} 9. O-O {[%clk 0:02:56.1]} 9... a6
{[%clk 0:02:56.1]} 10. c4 {[%clk 0:02:54.7]} 10... Nb4 {[%clk 0:02:55.4]} 11.
Be4 {[%clk 0:02:50.5]} 11... Qc7 {[%clk 0:02:52.5]} 12. a3 {[%clk 0:02:43.2]}
12... N4c6 {[%clk 0:02:51.5]} 13. Be3 {[%clk 0:02:36.7]} 13... Bf6 {[%clk
0:02:50.5]} 14. Nxc6 {[%clk 0:02:29.9]} 14... Nxc6 {[%clk 0:02:49.9]} 15. Qc2
{[%clk 0:02:30.1]} 15... g6 {[%clk 0:02:43.9]} 16. Rad1 {[%clk 0:02:30.4]} 16...
Bd7 {[%clk 0:02:37.9]} 17. b4 {[%clk 0:02:30.7]} 17... Rfd8 {[%clk 0:02:33.3]}
18. Rd2 {[%clk 0:02:20]} 18... Be8 {[%clk 0:02:22.8]} 19. Rfd1 {[%clk
0:02:20.1]} 19... Rxd2 {[%clk 0:02:22.1]} 20. Rxd2 {[%clk 0:02:21]} 20... Rd8
{[%clk 0:02:22.1]} 21. h4 {[%clk 0:02:17]} 21... Rxd2 {[%clk 0:02:19.9]} 22.
Qxd2 {[%clk 0:02:17.9]} 22... Ne5 {[%clk 0:02:17.9]} 23. Nxe5 {[%clk 0:02:15.8]}
23... Bxe5 {[%clk 0:02:15.5]} 24. c5 {[%clk 0:02:14.3]} 24... Bc6 {[%clk
0:02:14.6]} 25. Bxc6 {[%clk 0:01:57.1]} 25... Qxc6 {[%clk 0:02:14.1]} 26. Bh6
{[%clk 0:01:40.6]} 26... Qd5 {[%clk 0:02:09.4]} 27. Qxd5 {[%clk 0:01:35.5]}
27... exd5 {[%clk 0:02:08.9]} 28. Kf1 {[%clk 0:01:28.8]} 28... f5 {[%clk
0:01:54]} 29. Ke2 {[%clk 0:01:16.9]} 29... Kf7 {[%clk 0:01:53.2]} 30. Kd3 {[%clk
0:01:16.1]} 30... Ke6 {[%clk 0:01:52.7]} 31. Be3 {[%clk 0:01:15.1]} 31... Kd7
{[%clk 0:01:24.8]} 32. a4 {[%clk 0:01:13.3]} 32... Kc6 {[%clk 0:01:24.9]} 33.
Bd4 {[%clk 0:01:11.8]} 33... Bc7 {[%clk 0:01:23.4]} 34. Ke3 {[%clk 0:01:01.2]}
34... Bd8 {[%clk 0:01:17.1]} 35. g3 {[%clk 0:00:59]} 35... Bc7 {[%clk
0:01:12.1]} 36. Kf3 {[%clk 0:00:58.5]} 36... Bb8 {[%clk 0:01:03.5]} 37. g4
{[%clk 0:00:54.7]} 37... h5 {[%clk 0:00:55.7]} 38. gxf5 {[%clk 0:00:52.1]} 38...
gxf5 {[%clk 0:00:52.9]} 39. Bf6 {[%clk 0:00:36.6]} 39... a5 {[%clk 0:00:51.9]}
40. bxa5 {[%clk 0:00:33.5]} 40... Kxc5 {[%clk 0:00:51.5]} 41. Bd8 {[%clk
0:00:31.9]} 41... Kc4 {[%clk 0:00:50.1]} 42. Ke2 {[%clk 0:00:28.5]} 42... Kc3
{[%clk 0:00:47.1]} 43. Bf6+ {[%clk 0:00:23.6]} 43... d4 {[%clk 0:00:46.5]} 44.
Kd1 {[%clk 0:00:22.8]} 44... Kd3 {[%clk 0:00:44.1]} 45. Ke1 {[%clk 0:00:21.5]}
45... Ba7 {[%clk 0:00:42.3]} 46. Kd1 {[%clk 0:00:21.2]} 46... Bc5 {[%clk
0:00:38.3]} 47. Bd8 {[%clk 0:00:19.3]} 47... Ke4 {[%clk 0:00:36.6]} 48. Ke2
{[%clk 0:00:19.6]} 48... d3+ {[%clk 0:00:36.8]} 49. Ke1 {[%clk 0:00:20.1]} 49...
Bb4+ {[%clk 0:00:36.3]} 50. Kd1 {[%clk 0:00:19.2]} 50... Kf3 {[%clk 0:00:36.1]}
51. Bb6 {[%clk 0:00:19.4]} 51... f4 {[%clk 0:00:27.5]} 52. Bc7 {[%clk
0:00:18.7]} 52... Kxf2 {[%clk 0:00:26.8]} 53. Bxf4 {[%clk 0:00:18.7]} 53... Kf3
{[%clk 0:00:26.6]} 54. Bg5 {[%clk 0:00:18.6]} 54... Bxa5 {[%clk 0:00:26]} 55.
Bf6 {[%clk 0:00:18.8]} 55... Ke4 {[%clk 0:00:18.1]} 56. Be7 {[%clk 0:00:17.9]}
56... Kd5 {[%clk 0:00:18.1]} 57. Kc1 {[%clk 0:00:15.7]} 57... Kc4 {[%clk
0:00:17.8]} 58. Kb2 {[%clk 0:00:16.2]} 58... d2 {[%clk 0:00:17.4]} 59. Kc2
{[%clk 0:00:16.5]} 59... Bb4 {[%clk 0:00:15.4]} 60. Bg5 {[%clk 0:00:16.5]} 60...
Ba5 {[%clk 0:00:13.7]} 61. Be7 {[%clk 0:00:16.6]} 61... Kd4 {[%clk 0:00:09.4]}
62. Bg5 {[%clk 0:00:15.2]} 62... Ke4 {[%clk 0:00:09.1]} 63. Bh6 {[%clk
0:00:14.8]} 63... Kf3 {[%clk 0:00:08.7]} 64. Kd1 {[%clk 0:00:09.7]} 64... Kg4
{[%clk 0:00:06.9]} 65. Bg5 {[%clk 0:00:10]} 65... Bc3 {[%clk 0:00:06.2]} 66. Ke2
{[%clk 0:00:09.8]} 66... Be5 {[%clk 0:00:04.9]} 67. Be7 {[%clk 0:00:09.6]} 67...
Bg3 {[%clk 0:00:03.9]} 68. Kxd2 {[%clk 0:00:09.7]} 68... Bxh4 {[%clk 0:00:04.6]}
69. Bc5 {[%clk 0:00:09.3]} 69... Bg3 {[%clk 0:00:04.1]} 70. Ke2 {[%clk
0:00:07.4]} 70... h4 {[%clk 0:00:04.3]} 71. Kf1 {[%clk 0:00:07.6]} 71... Kf3
{[%clk 0:00:04.4]} 72. Kg1 {[%clk 0:00:06.9]} 72... h3 {[%clk 0:00:04.7]} 73.
Kh1 {[%clk 0:00:06.9]} 73... Ke4 {[%clk 0:00:04.2]} 74. Bb6 {[%clk 0:00:06.8]}
74... Kd5 {[%clk 0:00:04]} 75. Bd8 {[%clk 0:00:06.9]} 75... Kc4 {[%clk
0:00:03.8]} 76. Bb6 {[%clk 0:00:04.8]} 76... Kb4 {[%clk 0:00:03.5]} 77. a5
{[%clk 0:00:05.3]} 77... Kb5 {[%clk 0:00:03.8]} 78. Bd8 {[%clk 0:00:05.4]} 78...
Be1 {[%clk 0:00:03]} 79. Kh2 {[%clk 0:00:04.9]} 79... Bxa5 {[%clk 0:00:03.5]}
80. Be7 {[%clk 0:00:04.8]} 80... Bb4 {[%clk 0:00:02.3]} 81. Bd8 {[%clk
0:00:05.2]} 81... Ba5 {[%clk 0:00:02.2]} 82. Be7 {[%clk 0:00:04.9]} 82... Kc4
{[%clk 0:00:02.5]} 83. Kxh3 {[%clk 0:00:05]} 83... b5 {[%clk 0:00:02.8]} 84. Kg2
{[%clk 0:00:05.2]} 84... Bb4 {[%clk 0:00:03.2]} 85. Bd8 {[%clk 0:00:05.1]} 85...
Bc3 {[%clk 0:00:03]} 86. Kf1 {[%clk 0:00:04.8]} 86... b4 {[%clk 0:00:02.7]} 87.
Be7 {[%clk 0:00:04.9]} 87... b3 {[%clk 0:00:02.7]} 88. Ba3 {[%clk 0:00:05.1]}
88... Kd3 {[%clk 0:00:03]} 89. Kf2 {[%clk 0:00:04.4]} 89... Kc2 {[%clk
0:00:03.1]} 90. Ke2 {[%clk 0:00:04.6]} 90... Bb4 {[%clk 0:00:02.7]} 0-1